fUSD/lending_fUSD_20250606
["ID","MTS","AMOUNT","RATE_DAILY","PERIOD"]
[364763717,1749232249362,-480.0,0.00027561,5]
[364763718,1749232249371,-945.96,0.00027561,5]
[364763719,1749232249381,-480.0,0.00027561,5]
[364763720,1749232249390,-9400.84,0.00027561,5]
[364763721,1749232249403,-1025.22,0.00027561,5]
[364763722,1749232249413,-840.87,0.00027561,5]
[364763723,1749232249422,-497.59,0.00027561,5]
[364763724,1749232249431,-480.0,0.00027561,5]
[364763725,1749232249441,-480.0,0.00027561,5]
[364763726,1749232249450,-480.0,0.00027561,5]
[364763727,1749232249460,-998.42,0.00027561,5]
[364763728,1749232249470,-529.79,0.00027561,5]
[364763729,1749232249479,-1301.33,0.00027561,5]
[364763730,1749232249489,-183.91293602,0.00027561,5]
[364763731,1749232249499,-1362.78,0.00027561,5]
[364763732,1749232249509,-1124.54,0.00027561,5]
[364763733,1749232249518,-878.04,0.00027561,5]
[364763734,1749232249528,-497.879911,0.00027561,5]
[364763735,1749232249537,-480.0,0.00027561,5]
[364763736,1749232249548,-480.0,0.00027561,5]
[364763737,1749232249557,-480.0,0.00027561,5]
[364763738,1749232249567,-480.0,0.00027561,5]
[364763739,1749232249577,-876.69,0.00027561,5]
[364763740,1749232249587,-1190.68,0.00027561,5]
[364763741,1749232249596,-480.0,0.00027561,5]
[364763742,1749232249606,-1561.38,0.00027561,5]
[364763743,1749232249615,-500.74713263,0.00027561,5]
[364763744,1749232249625,-563.97,0.00027561,5]
[364763745,1749232249634,-480.0,0.00027561,5]
[364763746,1749232249644,-719.53,0.00027561,5]
[364763747,1749232249653,-1158.61,0.00027561,5]
[364763748,1749232249663,-480.0,0.00027561,5]
[364763749,1749232249673,-607.42,0.00027561,5]
[364763750,1749232249682,-480.0,0.00027561,5]
[364763751,1749232249691,-975.39,0.00027561,5]
[364763752,1749232249701,-2546.76,0.00027561,5]
[364763753,1749232249710,-3925.33,0.00027561,5]
[364763754,1749232249719,-480.0,0.00027561,5]
[364763755,1749232249729,-480.0,0.00027561,5]
[364763756,1749232249738,-1292.48,0.00027561,5]
[364763757,1749232249748,-3258.84,0.00027561,5]
[364763758,1749232249758,-1084.05,0.00027561,5]
[364763759,1749232249768,-480.0,0.00027561,5]
[364763760,1749232249778,-802.8,0.00027561,5]
[364763761,1749232249787,-480.0,0.00027561,5]
[364763762,1749232249797,-2408.27,0.00027561,5]
[364763763,1749232249807,-485.62,0.00027561,5]
[364763764,1749232249817,-1116.88,0.00027561,5]
[364763765,1749232249827,-864.58,0.00027561,5]
[364763766,1749232249837,-1084.42,0.00027561,5]
[364763767,1749232249846,-480.0,0.00027561,5]
[364763768,1749232249856,-1000.0,0.00027561,2]
[364763769,1749232249866,-480.0,0.00027561,5]
[364763770,1749232249876,-2033.06,0.00027561,5]
[364763771,1749232249885,-3682.99,0.00027561,5]
[364763772,1749232249894,-1300.74,0.00027561,5]
[364763773,1749232249904,-480.0,0.00027561,5]
[364763774,1749232249913,-929.02,0.00027561,5]
[364763775,1749232249923,-262.56410256,0.00027561,5]
[364763776,1749232249933,-480.0,0.00027561,5]
[364763777,1749232249942,-701.51,0.00027561,5]
[364763778,1749232249952,-480.0,0.00027561,5]
[364763779,1749232249961,-480.0,0.00027561,5]
[364763780,1749232249971,-692.25,0.00027561,5]
[364763781,1749232249981,-1997.42,0.00027561,5]
[364763782,1749232249990,-480.0,0.00027561,5]
[364763783,1749232250000,-538.67,0.00027561,5]
[364763784,1749232250011,-675.4,0.00027561,5]
[364763785,1749232250021,-617.13,0.00027561,5]
[364763786,1749232250031,-1456.03,0.00027561,5]
[364763787,1749232250040,-786.44,0.00027561,5]
[364763788,1749232250051,-480.0,0.00027561,5]
[364763789,1749232250060,-480.0,0.00027561,5]
[364763790,1749232250069,-480.0,0.00027561,5]
[364763791,1749232250079,-480.0,0.00027561,5]
[364763792,1749232250088,-489.29167731,0.00027561,5]
[364763793,1749232250097,-480.0,0.00027561,5]
[364763794,1749232250107,-480.0,0.00027561,5]
[364763795,1749232250117,-10592.65,0.00027561,5]
[364763796,1749232250126,-480.0,0.00027561,5]
[364763797,1749232250136,-718.37,0.00027561,5]
[364763798,1749232250145,-339.57217772,0.00027561,5]
[364763799,1749232250155,-1419.5,0.00027561,5]
[364763800,1749232250164,-480.0,0.00027561,5]
[364763801,1749232250174,-480.0,0.00027561,5]
[364763802,1749232250183,-480.0,0.00027561,5]
[364763803,1749232250193,-1116.9,0.00027561,5]
[364763804,1749232250202,-480.0,0.00027561,5]
[364763805,1749232250212,-1541.9,0.00027561,5]
[364763806,1749232250222,-532.82,0.00027561,5]
[364763807,1749232250233,-480.0,0.00027561,5]
[364763808,1749232250243,-1308.73,0.00027561,5]
[364763809,1749232250252,-1427.53,0.00027561,5]
[364763810,1749232250262,-480.0,0.00027561,5]
[364763811,1749232250272,-515.9,0.00027561,5]
[364763812,1749232250282,-699.94,0.00027561,5]
[364763813,1749232250292,-1320.37,0.00027561,5]
[364763814,1749232250302,-480.0,0.00027561,5]
[364763815,1749232250311,-6585.63,0.00027561,5]
[364763816,1749232250320,-480.0,0.00027561,5]
[364763817,1749232250330,-963.11,0.00027561,5]
[364763818,1749232250339,-543.07,0.00027561,5]
[364763819,1749232250349,-480.0,0.00027561,5]
[364763820,1749232250359,-480.0,0.00027561,5]
[364763821,1749232250369,-2238.96,0.00027561,5]
[364763822,1749232250378,-480.0,0.00027561,5]
[364763823,1749232250387,-480.0,0.00027561,5]
[364763824,1749232250399,-480.0,0.00027561,5]
[364763825,1749232250409,-480.0,0.00027561,5]
[364763826,1749232250419,-503.82,0.00027561,5]
[364763827,1749232250428,-480.0,0.00027561,5]
[364763828,1749232250438,-480.0,0.00027561,5]
[364763829,1749232250449,-5689.11,0.00027561,5]
[364763830,1749232250459,-624.07,0.00027561,5]
[364763831,1749232250468,-480.0,0.00027561,5]
[364763832,1749232250478,-502.56,0.00027561,5]
[364763833,1749232250487,-589.72,0.00027561,5]
[364763834,1749232250497,-480.0,0.00027561,5]
[364763835,1749232250506,-480.0,0.00027561,5]
[364763836,1749232250516,-480.0,0.00027561,5]
[364763837,1749232250526,-1738.52,0.00027561,5]
[364763838,1749232250535,-2039.06,0.00027561,5]
[364763839,1749232250545,-480.0,0.00027561,5]
[364763840,1749232250554,-480.0,0.00027561,5]
[364763841,1749232250563,-1704.16,0.00027561,5]
[364763842,1749232250573,-4049.17,0.00027561,5]
[364763843,1749232250583,-595.35190233,0.00027561,5]
[364763844,1749232250592,-480.0,0.00027561,5]
[364763845,1749232250601,-2523.1,0.00027561,5]
[364763846,1749232250611,-480.0,0.00027561,5]
[364763847,1749232250620,-480.0,0.00027561,5]
[364763848,1749232250629,-164.98347769,0.00027561,5]
[364763849,1749232250639,-480.0,0.00027561,5]
[364763850,1749232250648,-1489.66,0.00027561,5]
[364763851,1749232250658,-1394.31,0.00027561,5]
[364763852,1749232250668,-480.0,0.00027561,5]
[364763853,1749232250677,-13047.26,0.00027561,5]
[364763854,1749232250687,-480.0,0.00027561,5]
[364763855,1749232250696,-480.0,0.00027561,5]
[364763856,1749232250705,-824.96,0.00027561,5]
[364763857,1749232250715,-480.0,0.00027561,5]
[364763858,1749232250724,-1833.77,0.00027561,5]
[364763859,1749232250733,-512.45,0.00027561,5]
[364763860,1749232250743,-480.0,0.00027561,5]
[364763861,1749232250752,-795.02,0.00027561,5]
[364763862,1749232250762,-960.81,0.00027561,5]
[364763863,1749232250771,-953.38,0.00027561,5]
[364763864,1749232250781,-585.62,0.00027561,5]
[364763865,1749232250790,-1623.99,0.00027561,5]
[364763866,1749232250800,-567.44,0.00027561,5]
[364763867,1749232250809,-1506.02,0.00027561,5]
[364763868,1749232250819,-667.23,0.00027561,5]
[364763869,1749232250829,-480.0,0.00027561,5]
[364763870,1749232250838,-480.0,0.00027561,5]
[364763871,1749232250848,-1950.34,0.00027561,5]
[364763872,1749232250857,-2303.58,0.00027561,5]
[364763873,1749232250866,-540.83,0.00027561,5]
[364763874,1749232250876,-1340.96,0.00027561,5]
[364763875,1749232250885,-480.0,0.00027561,5]
[364763876,1749232250894,-957.47,0.00027561,5]
[364763877,1749232250903,-606.43,0.00027561,5]
[364763878,1749232250913,-582.38,0.00027561,5]
[364763879,1749232250922,-2526.43,0.00027561,5]
[364763880,1749232250932,-480.0,0.00027561,5]
[364763881,1749232250941,-517.73,0.00027561,5]
[364763882,1749232250951,-480.0,0.00027561,5]
[364763883,1749232250961,-486.12,0.00027561,5]
[364763884,1749232251233,-480.0,0.00027561,5]
[364763885,1749232251252,-480.0,0.00027561,5]
[364763886,1749232251264,-480.0,0.00027561,5]
[364763887,1749232251273,-480.0,0.00027561,2]
[364763888,1749232251283,-3628.25,0.00027561,5]
[364763889,1749232251292,-2448.87,0.00027561,5]
[364763890,1749232251302,-520.55,0.00027561,5]
[364763891,1749232251311,-480.0,0.00027561,5]
[364763892,1749232251321,-480.0,0.00027561,5]
[364763893,1749232251330,-567.01,0.00027561,5]
[364763894,1749232251339,-1108.87,0.00027561,5]
[364763895,1749232251349,-718.02,0.00027561,5]
[364763896,1749232251358,-46728.91,0.00027561,5]
[364763897,1749232251368,-618.44,0.00027561,5]
[364763898,1749232251379,-480.0,0.00027561,5]
[364763899,1749232251388,-480.0,0.00027561,5]
[364763900,1749232251402,-480.0,0.00027561,5]
[364763901,1749232251411,-490.28,0.00027561,5]
[364763902,1749232251421,-480.0,0.00027561,5]
[364763903,1749232251431,-480.0,0.00027561,5]
[364763904,1749232251440,-480.0,0.00027561,5]
[364763905,1749232251451,-1380.27,0.00027561,5]
[364763906,1749232251460,-2834.51,0.00027561,5]
[364763907,1749232251470,-4546.68,0.00027561,5]
[364763908,1749232251480,-1547.97,0.00027561,5]
[364763909,1749232251489,-500.0,0.00027573,5]
[364763910,1749232251498,-500.0,0.00027573,5]
[364763911,1749232251509,-501.50217081,0.00027573,5]
[364763912,1749232251518,-500.0,0.00027573,5]
[364763913,1749232251528,-692.83252447,0.0002759,17]
[364763914,1749232251538,-150.0,0.00027678,2]
[364763915,1749232251548,-4799.293659,0.0002768,2]
[364763916,1749232251558,-150.0,0.00027686,2]
[364763917,1749232251567,-150.0,0.00027698,2]
[364763918,1749232251578,-483.68686725,0.000277,2]
[364763919,1749232251588,-500.0,0.00027706,2]
[364763920,1749232251597,-708.55,0.00027715,5]
[364763921,1749232251607,-500.0,0.00027725,2]
[364763922,1749232251617,-500.0,0.00027725,5]
[364763923,1749232251627,-4979.44510459,0.00027725,2]
[364763924,1749232251636,-500.0,0.00027725,2]
[364763925,1749232251646,-708.55,0.00027725,5]
[364763926,1749232251655,-708.55,0.00027725,5]
[364763927,1749232251665,-514.15,0.00027725,5]
[364763928,1749232251675,-170.97231128,0.00027725,2]
[364763929,1749232251685,-326.04640625,0.00027725,2]
[364763930,1749232251695,-232.70745233,0.00027725,2]
[364763931,1749232251704,-480.0,0.00027726,5]
[364763932,1749232251714,-331.25284483,0.00027726,5]
[364763933,1749232251725,-480.0,0.00027726,5]
[364763934,1749232251737,-480.0,0.00027726,5]
[364763935,1749232251747,-480.0,0.00027726,5]
[364763936,1749232251757,-600.0,0.00027726,30]
[364763937,1749232251767,-480.0,0.00027726,5]
[364763938,1749232251777,-480.0,0.00027726,5]
[364763939,1749232251787,-480.0,0.00027726,5]
[364763940,1749232251797,-480.0,0.00027726,5]
[364763941,1749232251807,-586.20700295,0.00027726,5]
[364763942,1749232251816,-480.0,0.00027726,5]
[364763943,1749232251826,-480.0,0.00027726,5]
[364763944,1749232251836,-896.75,0.00027726,5]
[364763945,1749232251845,-480.0,0.00027726,5]
[364763946,1749232251855,-480.0,0.00027726,5]
[364763947,1749232251864,-282.73995091,0.00027726,5]
[364763948,1749232251874,-480.0,0.00027726,5]
[364763949,1749232251884,-480.0,0.00027726,5]
[364763950,1749232251894,-480.0,0.00027726,5]
[364763951,1749232251904,-480.0,0.00027726,5]
[364763952,1749232251913,-480.0,0.00027726,5]
[364763953,1749232251922,-630.9,0.00027726,5]
[364763954,1749232251933,-480.0,0.00027726,5]
[364763955,1749232251942,-777.390373,0.00027726,5]
[364763956,1749232251952,-480.0,0.00027726,5]
[364763957,1749232251962,-480.0,0.00027726,5]
[364763958,1749232251972,-480.0,0.00027726,5]
[364763959,1749232251981,-480.0,0.00027726,5]
[364763960,1749232251991,-190.24736055,0.00027726,5]
[364763961,1749232252000,-480.0,0.00027726,5]
[364763962,1749232252012,-480.0,0.00027726,5]
[364763963,1749232252021,-480.0,0.00027726,5]
[364763964,1749232252031,-928.199775,0.00027726,5]
[364763965,1749232252040,-481.88,0.00027726,5]
[364763966,1749232252050,-257.26036802,0.00027726,5]
[364763967,1749232252060,-480.0,0.00027726,5]
[364763968,1749232252069,-480.0,0.00027726,5]
[364763969,1749232252079,-480.0,0.00027726,5]
[364763970,1749232252088,-609.30085438,0.00027726,5]
[364763971,1749232252098,-480.0,0.00027726,5]
[364763972,1749232252107,-480.0,0.00027726,5]
[364763973,1749232252116,-480.0,0.00027726,5]
[364763974,1749232252125,-480.0,0.00027726,5]
[364763975,1749232252135,-480.0,0.00027726,5]
[364763976,1749232252144,-480.0,0.00027726,5]
[364763977,1749232252154,-480.0,0.00027726,5]
[364763978,1749232252164,-480.0,0.00027726,5]
[364763979,1749232252173,-480.0,0.00027726,5]
[364763980,1749232252183,-1468.86,0.00027726,5]
[364763981,1749232252193,-480.0,0.00027726,5]
[364763982,1749232252202,-536.62,0.00027726,5]
[364763983,1749232252212,-321.24603856,0.00027726,5]
[364763984,1749232252221,-480.0,0.00027726,5]
[364763985,1749232252231,-480.0,0.00027726,5]
[364763986,1749232252241,-480.0,0.00027726,5]
[364763987,1749232252250,-480.0,0.00027726,5]
[364763988,1749232252260,-1047.33,0.00027726,5]
[364763989,1749232252269,-480.0,0.00027726,5]
[364763990,1749232252279,-489.63464675,0.00027726,5]
[364763991,1749232252288,-480.0,0.00027726,2]
[364763992,1749232252297,-480.0,0.00027726,5]
[364763993,1749232252307,-548.21,0.00027726,5]
[364763994,1749232252317,-480.0,0.00027726,5]
[364763995,1749232252327,-480.0,0.00027726,5]
[364763996,1749232252336,-506.36,0.00027726,5]
[364763997,1749232252346,-655.25,0.00027726,5]
[364763998,1749232252355,-480.0,0.00027726,5]
[364763999,1749232252365,-480.0,0.00027726,5]
[364764000,1749232252374,-562.91,0.00027726,5]
[364764001,1749232252384,-480.0,0.00027726,5]
[364764002,1749232252394,-480.0,0.00027726,5]
[364764003,1749232252408,-681.75,0.00027726,5]
[364764004,1749232252417,-1022.98,0.00027726,5]
[364764005,1749232252427,-1085.93,0.00027726,5]
[364764006,1749232252437,-473.12598187,0.00027726,5]
[364764007,1749232252447,-480.0,0.00027726,5]
[364764008,1749232252457,-480.0,0.00027726,5]
[364764009,1749232252467,-480.0,0.00027726,5]
[364764010,1749232252478,-480.0,0.00027726,5]
[364764011,1749232252488,-480.0,0.00027726,5]
[364764012,1749232252498,-1146.93,0.00027726,5]
[364764013,1749232252509,-480.0,0.00027726,5]
[364764014,1749232252518,-480.0,0.00027726,5]
[364764015,1749232252528,-480.0,0.00027726,5]
[364764016,1749232252538,-480.0,0.00027726,5]
[364764017,1749232252547,-778.09,0.00027726,5]
[364764018,1749232252557,-480.0,0.00027726,5]
[364764019,1749232252566,-480.0,0.00027726,5]
[364764020,1749232252577,-480.0,0.00027726,5]
[364764021,1749232252587,-480.0,0.00027726,5]
[364764022,1749232252597,-559.45,0.00027726,5]
[364764023,1749232252606,-498.25,0.00027726,5]
[364764024,1749232252615,-480.0,0.00027726,5]
[364764025,1749232252625,-480.0,0.00027726,5]
[364764026,1749232252636,-475.97098415,0.00027726,5]
[364764027,1749232252655,-480.0,0.00027726,5]
[364764028,1749232252665,-480.0,0.00027726,5]
[364764029,1749232252675,-233.18133329,0.00027726,5]
[364764030,1749232252684,-480.0,0.00027726,5]
[364764031,1749232252695,-480.0,0.00027726,5]
[364764032,1749232252705,-733.4,0.00027726,5]
[364764033,1749232252715,-480.0,0.00027726,5]
[364764034,1749232252724,-589.09,0.00027726,5]
[364764035,1749232252733,-480.0,0.00027726,5]
[364764036,1749232252743,-480.0,0.00027726,5]
[364764037,1749232252752,-480.0,0.00027726,5]
[364764038,1749232252762,-480.0,0.00027726,5]
[364764039,1749232252771,-484.02,0.00027726,5]
[364764040,1749232252781,-1153.9,0.00027726,5]
[364764041,1749232252790,-480.0,0.00027726,5]
[364764042,1749232252799,-480.0,0.00027726,5]
[364764043,1749232252809,-903.84,0.00027726,5]
[364764044,1749232252818,-480.0,0.00027726,5]
[364764045,1749232252828,-480.0,0.00027726,5]
[364764046,1749232252838,-556.62,0.00027726,5]
[364764047,1749232252847,-981.49,0.00027726,5]
[364764048,1749232252860,-480.0,0.00027726,5]
[364764049,1749232252870,-964.66,0.00027726,5]
[364764050,1749232252879,-472.80846861,0.00027726,5]
[364764051,1749232252888,-480.0,0.00027726,5]
[364764052,1749232252897,-678.4,0.00027726,5]
[364764053,1749232252906,-480.0,0.00027726,5]
[364764054,1749232252916,-480.0,0.00027726,5]
[364764055,1749232252925,-889.12,0.00027726,5]
[364764056,1749232252933,-480.0,0.00027726,5]
[364764057,1749232252941,-521.62,0.00027726,5]
[364764058,1749232252950,-480.0,0.00027726,5]
[364764059,1749232252960,-486.9651403,0.00027726,5]
[364764060,1749232252969,-636.54,0.00027726,5]
[364764061,1749232252978,-733.8,0.00027726,5]
[364764062,1749232252988,-480.0,0.00027726,5]
[364764063,1749232252997,-711.04,0.00027726,5]
[364764064,1749232253006,-480.0,0.00027726,5]
[364764065,1749232253017,-480.0,0.00027726,5]
[364764066,1749232253026,-480.0,0.00027726,5]
[364764067,1749232253035,-480.0,0.00027726,5]
[364764068,1749232253044,-593.03,0.00027726,5]
[364764069,1749232253053,-480.0,0.00027726,5]
[364764070,1749232253063,-480.0,0.00027726,5]
[364764071,1749232253072,-1263.91,0.00027726,5]
[364764072,1749232253082,-661.04,0.00027726,5]
[364764073,1749232253091,-1568.4,0.00027726,5]
[364764074,1749232253100,-502.9,0.00027726,5]
[364764075,1749232253109,-480.0,0.00027726,5]
[364764076,1749232253118,-480.0,0.00027726,5]
[364764077,1749232253127,-480.0,0.00027726,5]
[364764078,1749232253137,-480.0,0.00027726,5]
[364764079,1749232253146,-562.99,0.00027726,5]
[364764080,1749232253156,-480.0,0.00027726,5]
[364764081,1749232253165,-963.1,0.00027726,5]
[364764082,1749232253174,-480.0,0.00027726,5]
[364764083,1749232253184,-584.26,0.00027726,5]
[364764084,1749232253194,-480.0,0.00027726,5]
[364764085,1749232253204,-480.0,0.00027726,5]
[364764086,1749232253213,-783.55,0.00027726,5]
[364764087,1749232253222,-694.01,0.00027726,5]
[364764088,1749232253231,-480.0,0.00027726,5]
[364764089,1749232253240,-770.15,0.00027726,5]
[364764090,1749232253249,-480.0,0.00027726,5]
[364764091,1749232253258,-489.3,0.00027726,5]
[364764092,1749232253268,-258.749831,0.00027726,5]
[364764093,1749232253277,-1274.86,0.00027726,5]
[364764094,1749232253286,-534.72,0.00027726,5]
[364764095,1749232253295,-753.93,0.00027726,5]
[364764096,1749232253304,-480.0,0.00027726,5]
[364764097,1749232253313,-1368.77,0.00027726,5]
[364764098,1749232253321,-480.0,0.00027726,5]
[364764099,1749232253331,-1051.49,0.00027726,5]
[364764100,1749232253340,-858.86,0.00027726,5]
[364764101,1749232253349,-572.72,0.00027726,5]
[364764102,1749232253358,-484.5,0.00027726,5]
[364764103,1749232253367,-480.0,0.00027726,5]
[364764104,1749232253377,-480.0,0.00027726,5]
[364764105,1749232253386,-7667.73,0.00027726,5]
[364764106,1749232253395,-826.1,0.00027726,5]
[364764107,1749232253407,-2263.03,0.00027726,5]
[364764108,1749232253417,-4219.38,0.00027726,5]
[364764109,1749232253426,-1005.48,0.00027726,5]
[364764110,1749232253437,-714.02,0.00027726,5]
[364764111,1749232253448,-480.0,0.00027726,5]
[364764112,1749232253457,-480.0,0.00027726,5]
[364764113,1749232253467,-480.0,0.00027726,5]
[364764114,1749232253476,-853.91,0.00027726,5]
[364764115,1749232253485,-1449.47,0.00027726,5]
[364764116,1749232253494,-6635.09,0.00027726,5]
[364764117,1749232253504,-480.0,0.00027726,5]
[364764118,1749232253514,-480.0,0.00027726,5]
[364764119,1749232253523,-480.0,0.00027726,5]
[364764120,1749232253533,-501.24,0.00027726,5]
[364764121,1749232253542,-3881.8,0.00027726,5]
[364764122,1749232253551,-480.0,0.00027726,5]
[364764123,1749232253560,-2521.17,0.00027726,5]
[364764124,1749232253569,-480.0,0.00027726,5]
[364764125,1749232253580,-1000.0,0.00027726,5]
[364764126,1749232253590,-480.0,0.00027726,5]
[364764127,1749232253667,-480.0,0.00027726,5]
[364764128,1749232253677,-503.15,0.00027726,5]
[364764129,1749232253686,-480.0,0.00027726,5]
[364764130,1749232253695,-674.03,0.00027726,5]
[364764131,1749232253703,-480.0,0.00027726,5]
[364764132,1749232253712,-480.0,0.00027726,5]
[364764133,1749232253721,-480.0,0.00027726,5]
[364764134,1749232253730,-790.26,0.00027726,5]
[364764135,1749232253739,-480.0,0.00027726,5]
[364764136,1749232253748,-153.74537542,0.00027726,5]
[364764137,1749232253757,-1159.15,0.00027726,5]
[364764138,1749232253766,-480.0,0.00027726,5]
[364764139,1749232253775,-945.96,0.00027726,5]
[364764140,1749232253784,-480.0,0.00027726,5]
[364764141,1749232253793,-9400.84,0.00027726,5]
[364764142,1749232253802,-1025.22,0.00027726,5]
[364764143,1749232253811,-840.87,0.00027726,5]
[364764144,1749232253820,-497.59,0.00027726,5]
[364764145,1749232253829,-480.0,0.00027726,5]
[364764146,1749232253838,-480.0,0.00027726,5]
[364764147,1749232253847,-998.42,0.00027726,5]
[364764148,1749232253856,-529.79,0.00027726,5]
[364764149,1749232253866,-1301.33,0.00027726,5]
[364764150,1749232253874,-1362.78,0.00027726,5]
[364764151,1749232253884,-1124.54,0.00027726,5]
[364764152,1749232253893,-878.04,0.00027726,5]
[364764153,1749232253902,-480.0,0.00027726,5]
[364764154,1749232253912,-480.0,0.00027726,5]
[364764155,1749232253921,-480.0,0.00027726,5]
[364764156,1749232253930,-876.69,0.00027726,5]
[364764157,1749232253939,-1190.68,0.00027726,5]
[364764158,1749232253948,-460.0,0.00027726,5]
[364764159,1749232253957,-1561.38,0.00027726,5]
[364764160,1749232253967,-563.97,0.00027726,5]
[364764161,1749232253976,-719.53,0.00027726,5]
[364764162,1749232253985,-1158.61,0.00027726,5]
[364764163,1749232253994,-480.0,0.00027726,5]
[364764164,1749232254003,-607.42,0.00027726,5]
[364764165,1749232254013,-480.0,0.00027726,5]
[364764166,1749232254023,-975.39,0.00027726,5]
[364764167,1749232254032,-2546.76,0.00027726,5]
[364764168,1749232254041,-3925.33,0.00027726,5]
[364764169,1749232254051,-480.0,0.00027726,5]
[364764170,1749232254060,-480.0,0.00027726,5]
[364764171,1749232254069,-1292.48,0.00027726,5]
[364764172,1749232254078,-3258.84,0.00027726,5]
[364764173,1749232254094,-1084.05,0.00027726,5]
[364764174,1749232254104,-480.0,0.00027726,5]
[364764175,1749232254113,-802.8,0.00027726,5]
[364764176,1749232254122,-480.0,0.00027726,5]
[364764177,1749232254131,-2408.27,0.00027726,5]
[364764178,1749232254140,-485.62,0.00027726,5]
[364764179,1749232254150,-1116.88,0.00027726,5]
[364764180,1749232254163,-864.58,0.00027726,5]
[364764181,1749232254172,-480.0,0.00027726,5]
[364764182,1749232254181,-1084.42,0.00027726,5]
[364764183,1749232254190,-1000.0,0.00027726,2]
[364764184,1749232254199,-480.0,0.00027726,5]
[364764185,1749232254208,-2033.06,0.00027726,5]
[364764186,1749232254217,-3682.99,0.00027726,5]
[364764187,1749232254226,-1300.74,0.00027726,5]
[364764188,1749232254235,-480.0,0.00027726,5]
[364764189,1749232254244,-929.02,0.00027726,5]
[364764190,1749232254253,-701.51,0.00027726,5]
[364764191,1749232254262,-480.0,0.00027726,5]
[364764192,1749232254271,-480.0,0.00027726,5]
[364764193,1749232254280,-692.25,0.00027726,5]
[364764194,1749232254289,-1997.42,0.00027726,5]
[364764195,1749232254298,-480.0,0.00027726,5]
[364764196,1749232254308,-538.67,0.00027726,5]
[364764197,1749232254317,-617.13,0.00027726,5]
[364764198,1749232254326,-675.4,0.00027726,5]
[364764199,1749232254335,-1456.03,0.00027726,5]
[364764200,1749232254344,-480.0,0.00027726,5]
[364764201,1749232254353,-786.44,0.00027726,5]
[364764202,1749232254362,-480.0,0.00027726,5]
[364764203,1749232254373,-480.0,0.00027726,5]
[364764204,1749232254383,-480.0,0.00027726,5]
[364764205,1749232254392,-10592.65,0.00027726,5]
[364764206,1749232254404,-288.26849159,0.00027726,5]
[364764207,1749232254413,-718.37,0.00027726,5]
[364764208,1749232254422,-1419.5,0.00027726,5]
[364764209,1749232254431,-480.0,0.00027726,5]
[364764210,1749232254440,-480.0,0.00027726,5]
[364764211,1749232254450,-480.0,0.00027726,5]
[364764212,1749232254458,-1116.9,0.00027726,5]
[364764213,1749232254467,-480.0,0.00027726,5]
[364764214,1749232254477,-532.82,0.00027726,5]
[364764215,1749232254486,-1541.9,0.00027726,5]
[364764216,1749232254495,-1308.73,0.00027726,5]